{"text_format":"2","workbook":"xlsx","n_sheets":2,"sheets":["ZF4. WT DL 2016-17 FINAL","Winter triticale DL 2019-20"],"not_rendered":{"charts":0,"images":1,"macros":0,"external_links":0,"defined_names":9,"comments":0,"pivot_tables":0},"unopened":[],"bounds":{"document_bytes":16777216,"sheet_cells":100000,"run_cost":"one","rows_first":2000,"rows_last":500,"rows_between":2000,"halvings":0,"cell_chars":16384,"cell_head_chars":4096},"cells_cut":0,"cells_raw":0,"read":"whole","date_system":"1900"}

{"sheet":"ZF4. WT DL 2016-17 FINAL","index":0,"n_rows":35,"n_cols":14,"rows_kept":35,"cut":false,"hidden":true,"merged":[]}
["AHDB Recommended List - Table 21"]
["Winter triticale Descriptive List 2017/18"]
[{"$nulls":11},"Year 3 Candidates"]
[null,1,4,7,8,9,10,12,13,null,null,2,6,11]
[null,{"$f":"IF(VLOOKUP(B$4,DataTable,28,FALSE)=\"P1\",\"NEW\",(IF(VLOOKUP(B$4,DataTable,28,FALSE)=\"DL\",\" \",IF(VLOOKUP(B$4,DataTable,28,FALSE)=\"P2\",\" \",(IF(VLOOKUP(B$4,DataTable,28,FALSE)=\"C\",\" \",VLOOKUP(B$4,DataTable,28,FALSE)))))))","v":{"$error":"#REF!"}},{"$error":"#REF!"},{"$error":"#REF!"},{"$error":"#REF!"},{"$error":"#REF!"},{"$error":"#REF!"},"C","C",null,null,{"$f":"IF(VLOOKUP(L$4,DataTable,28,FALSE)=\"P1\",\"NEW\",(IF(VLOOKUP(L$4,DataTable,28,FALSE)=\"DL\",\" \",IF(VLOOKUP(L$4,DataTable,28,FALSE)=\"P2\",\" \",(IF(VLOOKUP(L$4,DataTable,28,FALSE)=\"C\",\" \",VLOOKUP(L$4,DataTable,28,FALSE)))))))","v":{"$error":"#REF!"}},{"$f":"IF(VLOOKUP(M$4,DataTable,28,FALSE)=\"P1\",\"NEW\",(IF(VLOOKUP(M$4,DataTable,28,FALSE)=\"DL\",\" \",IF(VLOOKUP(M$4,DataTable,28,FALSE)=\"P2\",\" \",(IF(VLOOKUP(M$4,DataTable,28,FALSE)=\"C\",\" \",VLOOKUP(M$4,DataTable,28,FALSE)))))))","v":{"$error":"#REF!"}},{"$f":"IF(VLOOKUP(N$4,DataTable,28,FALSE)=\"P1\",\"NEW\",(IF(VLOOKUP(N$4,DataTable,28,FALSE)=\"DL\",\" \",IF(VLOOKUP(N$4,DataTable,28,FALSE)=\"P2\",\" \",(IF(VLOOKUP(N$4,DataTable,28,FALSE)=\"C\",\" \",VLOOKUP(N$4,DataTable,28,FALSE)))))))","v":{"$error":"#REF!"}}]
[null,{"$f":"VLOOKUP(B$4,DataTable,2,FALSE)","v":{"$error":"#REF!"}},{"$error":"#REF!"},{"$error":"#REF!"},{"$error":"#REF!"},{"$error":"#REF!"},{"$error":"#REF!"},{"$error":"#REF!"},{"$error":"#REF!"},"Average LSD (5%)",null,{"$f":"VLOOKUP(L$4,DataTable,2,FALSE)","v":{"$error":"#REF!"}},{"$f":"VLOOKUP(M$4,DataTable,2,FALSE)","v":{"$error":"#REF!"}},{"$f":"VLOOKUP(N$4,DataTable,2,FALSE)","v":{"$error":"#REF!"}}]
["Grain yield as % treated control"]
["Fungicide-treated (9.2 t/ha)",{"$f":"VLOOKUP(B$4,DataTable,10,FALSE)","v":{"$error":"#REF!"}},{"$error":"#REF!"},{"$error":"#REF!"},{"$error":"#REF!"},{"$error":"#REF!"},{"$error":"#REF!"},{"$error":"#REF!"},{"$error":"#REF!"},{"$f":"#REF!","v":{"$error":"#REF!"}},null,{"$f":"VLOOKUP(L$4,DataTable,11,FALSE)","v":{"$error":"#REF!"}},{"$error":"#REF!"},{"$error":"#REF!"}]
["Number of trials",{"$f":"VLOOKUP(B$4,DataTable,12,FALSE)","v":{"$error":"#REF!"}},{"$error":"#REF!"},{"$error":"#REF!"},{"$error":"#REF!"},{"$error":"#REF!"},{"$error":"#REF!"},{"$error":"#REF!"},{"$error":"#REF!"},null,null,{"$f":"VLOOKUP(L$4,DataTable,13,FALSE)","v":{"$error":"#REF!"}},{"$error":"#REF!"},{"$error":"#REF!"}]
["Agronomic features"]
["Lodging (%)",{"$f":"VLOOKUP(B$4,DataTable,16,FALSE)","v":{"$error":"#REF!"}},{"$error":"#REF!"},{"$error":"#REF!"},{"$error":"#REF!"},{"$error":"#REF!"},{"$error":"#REF!"},{"$error":"#REF!"},{"$error":"#REF!"},{"$f":"#REF!","v":{"$error":"#REF!"}},null,{"$f":"VLOOKUP(L$4,DataTable,17,FALSE)","v":{"$error":"#REF!"}},{"$error":"#REF!"},{"$error":"#REF!"}]
["Straw length (cm)",{"$f":"VLOOKUP(B$4,DataTable,17,FALSE)","v":{"$error":"#REF!"}},{"$error":"#REF!"},{"$error":"#REF!"},{"$error":"#REF!"},{"$error":"#REF!"},{"$error":"#REF!"},{"$error":"#REF!"},{"$error":"#REF!"},{"$f":"#REF!","v":{"$error":"#REF!"}},null,{"$f":"VLOOKUP(L$4,DataTable,18,FALSE)","v":{"$error":"#REF!"}},{"$error":"#REF!"},{"$error":"#REF!"}]
["Ripening (days +/- Agostino, -ve = earlier)","[+1]","[+1]","[0]","[+3]","[+2]","[-1]","[0]","[0]",{"$f":"#REF!","v":{"$error":"#REF!"}},null,{"$f":"VLOOKUP(L$4,DataTable,19,FALSE)","v":{"$error":"#REF!"}},{"$error":"#REF!"},{"$error":"#REF!"}]
["Grain quality"]
["Specific weight (kg/hl)",{"$f":"VLOOKUP(B$4,DataTable,14,FALSE)","v":{"$error":"#REF!"}},{"$error":"#REF!"},{"$error":"#REF!"},{"$error":"#REF!"},{"$error":"#REF!"},{"$error":"#REF!"},{"$error":"#REF!"},{"$error":"#REF!"},{"$f":"#REF!","v":{"$error":"#REF!"}},null,{"$f":"VLOOKUP(L$4,DataTable,15,FALSE)","v":{"$error":"#REF!"}},{"$error":"#REF!"},{"$error":"#REF!"}]
["Protein content (%)",{"$f":"VLOOKUP(B$4,DataTable,15,FALSE)","v":{"$error":"#REF!"}},{"$error":"#REF!"},{"$error":"#REF!"},{"$error":"#REF!"},{"$error":"#REF!"},{"$error":"#REF!"},{"$error":"#REF!"},{"$error":"#REF!"},{"$f":"#REF!","v":{"$error":"#REF!"}},null,{"$f":"VLOOKUP(L$4,DataTable,16,FALSE)","v":{"$error":"#REF!"}},{"$error":"#REF!"},{"$error":"#REF!"}]
["Breeder/ UK contact"]
["Breeder",{"$f":"VLOOKUP(B$4,DataTable,7,FALSE)","v":{"$error":"#REF!"}},{"$error":"#REF!"},{"$error":"#REF!"},{"$error":"#REF!"},{"$error":"#REF!"},{"$error":"#REF!"},{"$error":"#REF!"},{"$error":"#REF!"},null,null,{"$f":"VLOOKUP(L$4,DataTable,8,FALSE)","v":{"$error":"#REF!"}},{"$error":"#REF!"},{"$error":"#REF!"}]
["UK contact",{"$f":"VLOOKUP(B$4,DataTable,8,FALSE)","v":{"$error":"#REF!"}},{"$error":"#REF!"},{"$error":"#REF!"},{"$error":"#REF!"},{"$error":"#REF!"},{"$error":"#REF!"},{"$error":"#REF!"},{"$error":"#REF!"},null,null,{"$f":"VLOOKUP(L$4,DataTable,9,FALSE)","v":{"$error":"#REF!"}},{"$error":"#REF!"},{"$error":"#REF!"}]
["Status in DL system"]
["Year first listed",{"$f":"VLOOKUP(B$4,DataTable,9,FALSE)","v":{"$error":"#REF!"}},{"$error":"#REF!"},{"$error":"#REF!"},{"$error":"#REF!"},{"$error":"#REF!"},{"$error":"#REF!"},{"$error":"#REF!"},{"$error":"#REF!"},null,null,{"$f":"VLOOKUP(L$4,DataTable,9,FALSE)","v":{"$error":"#REF!"}},{"$error":"#REF!"},{"$error":"#REF!"}]
["DL status",{"$f":"IF(VLOOKUP(B$4,DataTable,28,FALSE)=\"DL\",\"-\",IF(VLOOKUP(B$4,DataTable,28,FALSE)=\"C\",\"-\",VLOOKUP(B$4,DataTable,28,FALSE)))","v":{"$error":"#REF!"}},{"$error":"#REF!"},{"$error":"#REF!"},{"$error":"#REF!"},{"$error":"#REF!"},{"$error":"#REF!"},{"$error":"#REF!"},{"$error":"#REF!"},null,null,{"$f":"IF(VLOOKUP(L$4,DataTable,29,FALSE)=\"DL\",\"-\",IF(VLOOKUP(L$4,DataTable,29,FALSE)=\"C\",\"-\",VLOOKUP(L$4,DataTable,29,FALSE)))","v":{"$error":"#REF!"}},{"$error":"#REF!"},{"$error":"#REF!"}]
[]
["The data in this table are provided for information only and do not constitute a recommendation."]
[]
["[ ] = limited data","Cope =  Trevor Cope Seeds (www.trevorcopeseeds.co.uk) ",{"$nulls":8},"Eng = Saatzucht Streng-Engelen"]
["C = yield control (for current table)","Dalt = Dalton Seeds (www.dalmark.co.uk)",{"$nulls":8},"Els = Elsoms Seeds (www.elsoms.com)"]
["*  = no longer in trial","Dank = Danko Hodowla Roslin, Poland",{"$nulls":8},"Hod = Hodowla Roslin Strzelce, Poland (www.hr-strzelce.pl)"]
["P1 = first year of listing","Desp = Maison Florimund Desprez, France",{"$nulls":8},"Lant = Lantmannen SW Seed BV, Sweden"]
["P2 = second year of listing","DLF = DLF Trifolium Ltd (www.dlf.co.uk)",{"$nulls":8},"Sen = Senova (www.senova.uk.com)"]
[]
[]
[]
["LSD = least significant difference"]
["Average LSD (5%): Varieties that are more than one LSD apart are significantly different at the 95% confidence level."]

{"sheet":"Winter triticale DL 2019-20","index":1,"n_rows":33,"n_cols":14,"rows_kept":33,"cut":false,"hidden":false,"merged":[[3,12,3,13],[28,13,31,15]]}
["AHDB Recommended List - Table 18"]
["Winter triticale Descriptive List 2019/20"]
[]
[{"$nulls":12},"Year 3 candidates"]
[null,"Kasyno","KWS Fido","Dometica","Cyrkon","Tribeca","Securo","LD17","Kereon","Agostino","Average LSD (5%)",null,"MAH7515 $","Tender PZO"]
[null," ","C"," "," "," "," "," "," ","C"]
["Grain yield (as % treated control)"]
["Fungicide-treated (9.9 t/ha)",108.2,104.6,100.9,100.6,99.5,99,98.7,97.4,95.4,6.4,null,"-","[100]"]
["Number of trials",8,10,8,10,10,10,8,10,10,null,null,"-",4]
["Agronomic features"]
["Lodging (%)","[0]","[0]","[2]","[0]","[5]","[2]","[6]","[2]","[0]",3.6,null,"-","[16]"]
["Straw length (cm)",103.26,112.43,111.39,96.57,121.73,120.57,105.89,109.97,103.73,4.75,null,"-","[126]"]
["Ripening (days +/- Agostino, -ve = earlier)","[+1]",0.46999999999997044,"[-1]",0.100000000000023,0,1.0399999999999636,"[-1]",-1.1899999999999977,0,1.34,null,"-","[0]"]
["Grain quality"]
["Specific weight (kg/hl)",74.56,76.48,71.739999999999995,73.89,73.67,74.760000000000005,77.58,75.72,75.66,1.24,null,"-","[75.7]"]
["Protein content (%)",11.65,11.46,11.35,11.59,11.56,12.15,11.97,11.56,11.8,0.39,null,"-","[12.1]"]
["Breeder/UK contact"]
["Breeder","Dank","Lant","Lant","Hod","Desp","Eng","LD","Desp","Lant",null,null,"-","IGP"]
["UK contact","Sen","Sen","Sen","Dalt","Els","Cope","Pick","Els","Sen",null,null,"Dalt","Sen"]
["Status in DL system"]
["Year first listed","18","14","18","16","12","17","18","16","11",null,null,"-","-"]
["DL status","P2","-","P2","-","-","-","P2","-","-",null,null,"-","-"]
[]
["Varieties no longer listed: Tradiro."]
["The data in this table are provided for information only and do not constitute a recommendation."]
["$ Data for the Year 3 candidates cannot be published as these varieties have not completed National List testing. "]
[]
["C = Yield control (for current table)","Cope = Trevor Cope Seeds (www.trevorcopeseeds.co.uk)",{"$nulls":5},"Hod = Hodowla Roslin Strzelce, Poland (www.hr-strzelce.pl)",{"$nulls":5},"LSD = Least significant difference"]
["[ ] = Limited data","Dalt = Dalton Seeds (www.dalmark.co.uk)",{"$nulls":5},"IGP = IG-Pflanzenzucht, Germany",{"$nulls":5},"Average LSD (5%): Varieties that are more than one LSD apart are significantly different at the 95% confidence level."]
["P2 = Second year of listing","Dank = Danko Hodowla Roslin, Poland (www.danko.pl)",{"$nulls":5},"Lant = Lantmannen SW Seed BV"]
[null,"Desp = Maison Florimond Desprez, France (www.florimond-desprez.com)",{"$nulls":5},"LD = Lemaire Deffontaines"]
[null,"Els = Elsoms Seeds (www.elsoms.com)",{"$nulls":5},"Pick = Mike Pickford"]
[null,"Eng = Saatzucht Streng-Engelen",{"$nulls":5},"Sen = Senova (www.senova.uk.com)"]